[Event "Vastgota Open 2023"]
[Site "Skara stadshotell, Jarnvagsgatan 5, Skara, Sweden"]
[Date "2023.02.18"]
[Round "2.2"]
[White "Miezis, Normunds"]
[Black "Wengholm, Anders"]
[Result "1-0"]
[TimeControl "15 minutes + 5 seconds per move from move one (Round 1 - 2) / 30 minutes + 10 seconds per move from move one (Round 3 - 9)"]
[WhiteTitle "GM"]
[WhiteFideId "11600136"]
[BlackFideId "1704818"]
[WhiteElo "2502"]
[BlackElo "2104"]

1. c4 {[%clk 00:15:06]} {[%emt 00:00:03]} c5 {[%clk 00:15:00]} {[%emt
00:00:11]} 2. Nc3 {[%clk 00:15:08]} {[%emt 00:00:03]} Nc6 {[%clk 00:13:43]}
{[%emt 00:01:23]} 3. g3 {[%clk 00:15:08]} {[%emt 00:00:03]} g6 {[%clk
00:13:47]} {[%emt 00:00:03]} 4. Bg2 {[%clk 00:15:09]} {[%emt 00:00:03]} Bg7
{[%clk 00:13:47]} {[%emt 00:00:06]} 5. a3 {[%clk 00:15:07]} {[%emt 00:00:07]}
d6 {[%clk 00:11:28]} {[%emt 00:02:25]} 6. Rb1 {[%clk 00:15:01]} {[%emt
00:00:10]} Bd7 {[%clk 00:11:04]} {[%emt 00:00:29]} 7. b4 {[%clk 00:14:39]}
{[%emt 00:00:27]} Bxc3 {[%clk 00:10:48]} {[%emt 00:00:21]} 8. dxc3 {[%clk
00:14:37]} {[%emt 00:00:07]} Qc7 {[%clk 00:09:47]} {[%emt 00:01:06]} 9. Nf3
{[%clk 00:13:09]} {[%emt 00:01:32]} f6 {[%clk 00:07:18]} {[%emt 00:02:35]} 10.
O-O {[%clk 00:12:47]} {[%emt 00:00:26]} O-O-O {[%emt 00:00:12]} 11. Be3 {[%clk
00:10:53]} {[%emt 00:01:57]} b6 {[%clk 00:07:05]} {[%emt 00:00:14]} 12. a4
{[%clk 00:09:44]} {[%emt 00:01:13]} a5 {[%clk 00:06:12]} {[%emt 00:00:58]} 13.
bxc5 {[%clk 00:09:40]} {[%emt 00:00:10]} bxc5 {[%clk 00:05:30]} {[%emt
00:00:47]} 14. Qb3 {[%clk 00:08:43]} {[%emt 00:01:01]} e5 {[%clk 00:05:14]}
{[%emt 00:00:21]} 15. Nd2 {[%clk 00:08:39]} {[%emt 00:00:09]} f5 {[%clk
00:05:05]} {[%emt 00:00:14]} 16. Bd5 {[%clk 00:07:19]} {[%emt 00:01:25]} h6
{[%clk 00:04:18]} {[%emt 00:00:53]} 17. Rb2 {[%clk 00:06:50]} {[%emt 00:00:34]}
Nf6 {[%clk 00:03:40]} {[%emt 00:00:43]} 18. Rfb1 {[%clk 00:05:50]} {[%emt
00:01:05]} Ng4 {[%clk 00:02:38]} {[%emt 00:01:07]} 19. Nf1 {[%clk 00:05:28]}
{[%emt 00:00:27]} g5 {[%clk 00:02:36]} {[%emt 00:00:07]} 20. Qb6 {[%clk
00:05:17]} {[%emt 00:00:15]} f4 {[%clk 00:02:04]} {[%emt 00:00:38]} 21. Qa6+
{[%clk 00:05:10]} {[%emt 00:00:12]} 1-0

[Event "Vastgota Open 2023"]
[Site "Skara stadshotell, Jarnvagsgatan 5, Skara, Sweden"]
[Date "2023.02.18"]
[Round "2.3"]
[White "Evertsson, Lennart"]
[Black "Sivuk, Vitaly"]
[Result "1-0"]
[TimeControl "15 minutes + 5 seconds per move from move one (Round 1 - 2) / 30 minutes + 10 seconds per move from move one (Round 3 - 9)"]
[BlackTitle "GM"]
[WhiteFideId "1705156"]
[BlackFideId "14116502"]
[WhiteElo "2095"]
[BlackElo "2502"]

1. c4 {[%clk 00:15:06]} {[%emt 00:00:04]} e6 {[%clk 00:15:02]} {[%emt
00:00:08]} 2. Nf3 {[%clk 00:15:02]} {[%emt 00:00:08]} d5 {[%clk 00:15:04]}
{[%emt 00:00:03]} 3. e3 {[%clk 00:14:42]} {[%emt 00:00:25]} Nf6 {[%clk
00:15:06]} {[%emt 00:00:02]} 4. b3 {[%clk 00:14:23]} {[%emt 00:00:25]} c5
{[%clk 00:14:56]} {[%emt 00:00:15]} 5. Bb2 {[%clk 00:13:42]} {[%emt 00:00:47]}
Nc6 {[%clk 00:14:57]} {[%emt 00:00:03]} 6. Be2 {[%clk 00:12:23]} {[%emt
00:01:24]} d4 {[%clk 00:14:38]} {[%emt 00:00:24]} 7. exd4 {[%clk 00:12:15]}
{[%emt 00:00:14]} cxd4 {[%clk 00:14:41]} {[%emt 00:00:02]} 8. d3 {[%clk
00:12:11]} {[%emt 00:00:09]} e5 {[%clk 00:14:18]} {[%emt 00:00:27]} 9. O-O
{[%clk 00:11:48]} {[%emt 00:00:28]} Be7 {[%clk 00:13:36]} {[%emt 00:00:47]} 10.
Nbd2 {[%clk 00:11:14]} {[%emt 00:00:39]} O-O {[%clk 00:13:34]} {[%emt
00:00:07]} 11. a3 {[%clk 00:10:38]} {[%emt 00:00:42]} a5 {[%clk 00:13:37]}
{[%emt 00:00:02]} 12. Re1 {[%clk 00:10:15]} {[%emt 00:00:27]} Nd7 {[%clk
00:13:21]} {[%emt 00:00:21]} 13. Qc2 {[%clk 00:09:26]} {[%emt 00:00:55]} b6
{[%clk 00:13:00]} {[%emt 00:00:25]} 14. Ne4 {[%clk 00:08:46]} {[%emt 00:00:45]}
f5 {[%clk 00:12:02]} {[%emt 00:01:04]} 15. Ng3 {[%clk 00:08:42]} {[%emt
00:00:09]} Nc5 {[%clk 00:11:51]} {[%emt 00:00:15]} 16. Bf1 {[%clk 00:08:07]}
{[%emt 00:00:40]} Bf6 {[%clk 00:09:46]} {[%emt 00:02:10]} 17. Nh5 {[%clk
00:07:17]} {[%emt 00:00:55]} Bb7 {[%clk 00:09:23]} {[%emt 00:00:28]} 18. Rab1
{[%clk 00:06:36]} {[%emt 00:00:46]} e4 {[%clk 00:08:36]} {[%emt 00:00:52]} 19.
Nxf6+ {[%clk 00:05:56]} {[%emt 00:00:46]} Qxf6 {[%clk 00:08:34]} {[%emt
00:00:06]} 20. Nd2 {[%clk 00:05:12]} {[%emt 00:00:49]} Rae8 {[%clk 00:08:28]}
{[%emt 00:00:12]} 21. Ba1 {[%clk 00:04:14]} {[%emt 00:01:03]} Qg5 {[%clk
00:04:33]} {[%emt 00:04:00]} 22. dxe4 {[%clk 00:02:49]} {[%emt 00:01:30]} fxe4
{[%clk 00:04:35]} {[%emt 00:00:02]} 23. b4 {[%clk 00:02:44]} {[%emt 00:00:10]}
e3 {[%clk 00:03:40]} {[%emt 00:01:00]} 24. fxe3 {[%clk 00:02:11]} {[%emt
00:00:39]} dxe3 {[%clk 00:03:32]} {[%emt 00:00:12]} 25. bxc5 {[%clk 00:01:52]}
{[%emt 00:00:24]} exd2 {[%clk 00:03:27]} {[%emt 00:00:10]} 26. Rxe8 {[%clk
00:01:40]} {[%emt 00:00:18]} Rxe8 {[%clk 00:03:30]} {[%emt 00:00:02]} 27. Bc3
{[%clk 00:01:20]} {[%emt 00:00:25]} Qxc5+ {[%clk 00:02:07]} {[%emt 00:01:28]}
28. Kh1 {[%clk 00:01:22]} {[%emt 00:00:02]} Rd8 {[%clk 00:02:03]} {[%emt
00:00:09]} 29. Rd1 {[%clk 00:00:59]} {[%emt 00:00:28]} Qf2 {[%clk 00:01:59]}
{[%emt 00:00:09]} 30. Qe4 {[%clk 00:00:43]} {[%emt 00:00:21]} Rf8 {[%clk
00:00:35]} {[%emt 00:01:30]} 31. Bd3 {[%clk 00:00:33]} {[%emt 00:00:15]} g6
{[%clk 00:00:39]} {[%emt 00:00:01]} 32. c5 {[%clk 00:00:25]} {[%emt 00:00:13]}
b5 {[%clk 00:00:17]} {[%emt 00:00:27]} 33. Bxb5 {[%clk 00:00:14]} {[%emt
00:00:16]} Qf5 {[%clk 00:00:09]} {[%emt 00:00:13]} 34. Bc4+ {[%clk 00:00:08]}
{[%emt 00:00:10]} Rf7 {[%clk 00:00:09]} {[%emt 00:00:05]} 35. Qe8# {[%clk
00:00:00]} 1-0

[Event "Vastgota Open 2023"]
[Site "Skara stadshotell, Jarnvagsgatan 5, Skara, Sweden"]
[Date "2023.02.18"]
[Round "2.4"]
[White "Seo, Jung Min"]
[Black "Lind, Jan-Olov"]
[Result "1-0"]
[TimeControl "15 minutes + 5 seconds per move from move one (Round 1 - 2) / 30 minutes + 10 seconds per move from move one (Round 3 - 9)"]
[WhiteTitle "IM"]
[WhiteFideId "1734687"]
[BlackFideId "1701193"]
[WhiteElo "2448"]
[BlackElo "2096"]

1. e4 {[%clk 00:15:10]} c5 {[%clk 00:15:06]} {[%emt 00:00:04]} 2. Nf3 {[%clk
00:15:13]} g6 {[%clk 00:15:09]} {[%emt 00:00:02]} 3. d4 {[%clk 00:14:19]}
{[%emt 00:01:00]} cxd4 {[%clk 00:15:12]} {[%emt 00:00:02]} 4. Nxd4 {[%clk
00:13:48]} {[%emt 00:00:36]} Bg7 {[%clk 00:15:03]} {[%emt 00:00:13]} 5. Nc3
{[%clk 00:13:34]} {[%emt 00:00:20]} Nc6 {[%clk 00:14:59]} {[%emt 00:00:09]} 6.
Be3 {[%clk 00:13:37]} {[%emt 00:00:02]} Nf6 {[%clk 00:14:50]} {[%emt 00:00:14]}
7. Bc4 {[%clk 00:13:15]} {[%emt 00:00:27]} O-O {[%clk 00:14:51]} {[%emt
00:00:04]} 8. Bb3 {[%clk 00:13:14]} {[%emt 00:00:06]} d6 {[%clk 00:14:50]}
{[%emt 00:00:05]} 9. f3 {[%clk 00:13:17]} {[%emt 00:00:03]} Bd7 {[%clk
00:14:52]} {[%emt 00:00:03]} 10. Qd2 {[%clk 00:13:19]} {[%emt 00:00:04]} Nxd4
{[%clk 00:14:52]} {[%emt 00:00:04]} 11. Bxd4 {[%clk 00:13:22]} {[%emt
00:00:02]} b5 {[%clk 00:14:54]} {[%emt 00:00:03]} 12. O-O {[%clk 00:13:12]}
{[%emt 00:00:15]} a5 {[%clk 00:13:50]} {[%emt 00:01:09]} 13. a3 {[%clk
00:13:05]} {[%emt 00:00:12]} Rb8 {[%clk 00:12:48]} {[%emt 00:01:08]} 14. Kh1
{[%clk 00:13:01]} {[%emt 00:00:08]} a4 {[%clk 00:12:09]} {[%emt 00:00:44]} 15.
Ba2 {[%clk 00:13:04]} {[%emt 00:00:03]} b4 {[%clk 00:11:36]} {[%emt 00:00:37]}
16. axb4 {[%clk 00:13:05]} {[%emt 00:00:04]} Rxb4 {[%clk 00:11:39]} {[%emt
00:00:02]} 17. Ne2 {[%clk 00:12:15]} {[%emt 00:00:54]} Qb8 {[%clk 00:10:20]}
{[%emt 00:01:25]} 18. Bc3 {[%clk 00:11:36]} {[%emt 00:00:45]} Rxb2 {[%clk
00:09:29]} {[%emt 00:00:56]} 19. Bxb2 {[%clk 00:11:39]} Qxb2 {[%clk 00:09:33]}
{[%emt 00:00:01]} 20. Rfb1 {[%clk 00:11:25]} {[%emt 00:00:19]} Qe5 {[%clk
00:09:28]} {[%emt 00:00:10]} 21. c3 {[%clk 00:11:16]} {[%emt 00:00:14]} Bc6
{[%clk 00:05:59]} {[%emt 00:03:34]} 22. Nd4 {[%clk 00:10:53]} {[%emt 00:00:27]}
Bxe4 {[%clk 00:03:31]} {[%emt 00:02:33]} 23. Re1 {[%clk 00:10:41]} {[%emt
00:00:17]} d5 {[%clk 00:03:24]} {[%emt 00:00:13]} 24. Bb1 {[%clk 00:10:00]}
{[%emt 00:00:46]} Qh5 {[%clk 00:02:33]} {[%emt 00:00:56]} 25. fxe4 {[%clk
00:09:59]} {[%emt 00:00:06]} Ng4 {[%clk 00:02:04]} {[%emt 00:00:33]} 26. h3
{[%clk 00:08:06]} {[%emt 00:01:59]} Qh4 {[%clk 00:01:04]} {[%emt 00:01:05]} 27.
Nf3 {[%clk 00:07:51]} {[%emt 00:00:21]} Nf2+ {[%clk 00:00:22]} {[%emt
00:00:47]} 28. Kg1 {[%clk 00:07:51]} {[%emt 00:00:04]} Nxh3+ {[%clk 00:00:24]}
{[%emt 00:00:03]} 29. gxh3 {[%clk 00:07:54]} {[%emt 00:00:02]} Qg3+ {[%clk
00:00:22]} {[%emt 00:00:07]} 30. Qg2 {[%clk 00:07:57]} {[%emt 00:00:02]} Qf4
{[%clk 00:00:20]} {[%emt 00:00:07]} 31. e5 {[%clk 00:07:34]} {[%emt 00:00:28]}
Rc8 {[%clk 00:00:22]} {[%emt 00:00:03]} 32. Qg4 {[%clk 00:07:35]} {[%emt
00:00:04]} Qxg4+ {[%clk 00:00:25]} {[%emt 00:00:02]} 33. hxg4 {[%clk 00:07:38]}
{[%emt 00:00:02]} Rxc3 {[%clk 00:00:28]} {[%emt 00:00:02]} 34. Kf2 {[%clk
00:07:28]} {[%emt 00:00:14]} a3 {[%clk 00:00:32]} {[%emt 00:00:02]} 35. Re3
{[%clk 00:07:23]} {[%emt 00:00:10]} Rc4 {[%clk 00:00:35]} {[%emt 00:00:02]} 36.
g5 {[%clk 00:07:17]} {[%emt 00:00:11]} h6 {[%clk 00:00:39]} {[%emt 00:00:01]}
37. Raxa3 {[%clk 00:07:11]} {[%emt 00:00:11]} hxg5 {[%clk 00:00:43]} {[%emt
00:00:02]} 38. Ra8+ {[%clk 00:07:14]} {[%emt 00:00:02]} Bf8 {[%clk 00:00:41]}
{[%emt 00:00:06]} 39. Nxg5 {[%clk 00:07:14]} {[%emt 00:00:05]} Kg7 {[%clk
00:00:45]} 40. Rf3 {[%clk 00:07:12]} {[%emt 00:00:07]} 1-0

[Event "Vastgota Open 2023"]
[Site "Skara stadshotell, Jarnvagsgatan 5, Skara, Sweden"]
[Date "2023.02.18"]
[Round "2.5"]
[White "Bengtsson, Jessica"]
[Black "Cramling, Pia"]
[Result "1-0"]
[TimeControl "15 minutes + 5 seconds per move from move one (Round 1 - 2) / 30 minutes + 10 seconds per move from move one (Round 3 - 9)"]
[WhiteTitle "WFM"]
[BlackTitle "GM"]
[WhiteFideId "1711083"]
[BlackFideId "1700030"]
[WhiteElo "2016"]
[BlackElo "2429"]

1. e4 {[%clk 00:15:04]} {[%emt 00:00:05]} c5 {[%clk 00:15:09]} {[%emt
00:00:02]} 2. c3 {[%clk 00:15:05]} {[%emt 00:00:04]} Nf6 {[%clk 00:15:08]}
{[%emt 00:00:06]} 3. e5 {[%clk 00:15:08]} {[%emt 00:00:03]} Nd5 {[%clk
00:15:12]} {[%emt 00:00:01]} 4. d4 {[%clk 00:15:08]} {[%emt 00:00:05]} cxd4
{[%clk 00:15:15]} {[%emt 00:00:02]} 5. Nf3 {[%clk 00:15:10]} {[%emt 00:00:02]}
Nc6 {[%clk 00:15:13]} {[%emt 00:00:07]} 6. cxd4 {[%clk 00:15:11]} {[%emt
00:00:04]} g6 {[%clk 00:14:55]} {[%emt 00:00:24]} 7. Bc4 {[%clk 00:14:12]}
{[%emt 00:01:03]} Nb6 {[%clk 00:14:51]} {[%emt 00:00:09]} 8. Bb3 {[%clk
00:14:14]} {[%emt 00:00:03]} Bg7 {[%clk 00:14:51]} {[%emt 00:00:05]} 9. O-O
{[%clk 00:14:10]} {[%emt 00:00:09]} O-O {[%clk 00:14:38]} {[%emt 00:00:18]} 10.
Nc3 {[%clk 00:13:54]} {[%emt 00:00:20]} d6 {[%clk 00:14:21]} {[%emt 00:00:22]}
11. Bf4 {[%clk 00:08:27]} {[%emt 00:05:32]} Bg4 {[%clk 00:13:49]} {[%emt
00:00:37]} 12. Re1 {[%clk 00:06:28]} {[%emt 00:02:05]} dxe5 {[%clk 00:09:39]}
{[%emt 00:04:15]} 13. dxe5 {[%clk 00:06:26]} {[%emt 00:00:07]} Qxd1 {[%clk
00:08:59]} {[%emt 00:00:44]} 14. Bxd1 {[%clk 00:06:08]} {[%emt 00:00:23]} Rad8
{[%clk 00:07:58]} {[%emt 00:01:06]} 15. h3 {[%clk 00:05:58]} {[%emt 00:00:15]}
Bxf3 {[%clk 00:06:37]} {[%emt 00:01:27]} 16. Bxf3 {[%clk 00:06:00]} {[%emt
00:00:02]} Nd4 {[%clk 00:06:39]} {[%emt 00:00:03]} 17. Be4 {[%clk 00:05:28]}
{[%emt 00:00:37]} Nc4 {[%clk 00:06:26]} {[%emt 00:00:18]} 18. Rab1 {[%clk
00:02:52]} {[%emt 00:02:41]} Ne6 {[%clk 00:05:04]} {[%emt 00:01:27]} 19. Be3
{[%clk 00:02:04]} {[%emt 00:00:53]} Nxe3 {[%clk 00:04:34]} {[%emt 00:00:35]} 20.
Rxe3 {[%clk 00:02:05]} {[%emt 00:00:04]} Bxe5 {[%clk 00:04:31]} {[%emt
00:00:08]} 21. Bxb7 {[%clk 00:01:58]} {[%emt 00:00:13]} Bd4 {[%clk 00:04:17]}
{[%emt 00:00:18]} 22. Ree1 {[%clk 00:01:55]} {[%emt 00:00:07]} Nc5 {[%clk
00:03:46]} {[%emt 00:00:38]} 23. Be4 {[%clk 00:01:48]} {[%emt 00:00:11]} a5
{[%clk 00:02:39]} {[%emt 00:01:13]} 24. Bc2 {[%clk 00:01:17]} {[%emt 00:00:35]}
e5 {[%clk 00:02:06]} {[%emt 00:00:38]} 25. Ne2 {[%clk 00:01:12]} {[%emt
00:00:10]} Rd5 {[%clk 00:01:41]} {[%emt 00:00:30]} 26. b4 {[%clk 00:00:56]}
{[%emt 00:00:21]} axb4 {[%clk 00:01:43]} {[%emt 00:00:04]} 27. Rxb4 {[%clk
00:01:00]} Rc8 {[%clk 00:01:24]} {[%emt 00:00:22]} 28. Bb3 {[%clk 00:00:35]}
{[%emt 00:00:31]} Nxb3 {[%clk 00:01:25]} {[%emt 00:00:05]} 29. Rxb3 {[%clk
00:00:35]} {[%emt 00:00:05]} Rc2 {[%clk 00:01:19]} {[%emt 00:00:10]} 30. Nxd4
{[%clk 00:00:11]} {[%emt 00:00:30]} exd4 {[%clk 00:01:21]} {[%emt 00:00:02]} 31.
a4 {[%clk 00:00:10]} {[%emt 00:00:07]} d3 {[%clk 00:01:01]} {[%emt 00:00:24]}
32. Rd1 {[%clk 00:00:08]} {[%emt 00:00:07]} d2 {[%clk 00:00:26]} {[%emt
00:00:40]} 33. Kf1 {[%clk 00:00:13]} Ra2 {[%clk 00:00:14]} {[%emt 00:00:17]} 34.
Rbb1 {[%clk 00:00:06]} {[%emt 00:00:12]} h5 {[%clk 00:00:12]} {[%emt 00:00:07]}
35. Ke2 {[%clk 00:00:08]} {[%emt 00:00:03]} Re5+ {[%clk 00:00:15]} {[%emt
00:00:02]} 36. Kf1 {[%clk 00:00:09]} {[%emt 00:00:05]} Kg7 {[%clk 00:00:12]}
{[%emt 00:00:08]} 37. g3 {[%clk 00:00:12]} {[%emt 00:00:02]} h4 {[%clk
00:00:10]} {[%emt 00:00:07]} 38. g4 {[%clk 00:00:11]} {[%emt 00:00:05]} Rd5
{[%clk 00:00:11]} {[%emt 00:00:05]} 39. Ke2 {[%clk 00:00:14]} {[%emt 00:00:02]}
Re5+ {[%clk 00:00:15]} 40. Kf1 {[%clk 00:00:18]} {[%emt 00:00:01]} Re4 {[%clk
00:00:17]} {[%emt 00:00:04]} 41. Rb3 {[%clk 00:00:12]} {[%emt 00:00:11]} Rd4
{[%clk 00:00:12]} {[%emt 00:00:10]} 42. Ke2 {[%clk 00:00:15]} {[%emt 00:00:02]}
Re4+ {[%clk 00:00:09]} {[%emt 00:00:08]} 43. Kf1 {[%clk 00:00:19]} {[%emt
00:00:01]} Rexa4 {[%clk 00:00:07]} {[%emt 00:00:07]} 44. Rd3 {[%clk 00:00:22]}
{[%emt 00:00:02]} R4a3 {[%clk 00:00:10]} {[%emt 00:00:02]} 45. Ke2 {[%clk
00:00:19]} {[%emt 00:00:09]} Rxd3 {[%clk 00:00:12]} {[%emt 00:00:02]} 46. Kxd3
{[%clk 00:00:23]} Ra3+ {[%clk 00:00:16]} {[%emt 00:00:01]} 47. Kxd2 {[%clk
00:00:27]} Rxh3 {[%clk 00:00:20]} 48. Ke2 {[%clk 00:00:26]} {[%emt 00:00:06]}
Ra3 {[%clk 00:00:17]} {[%emt 00:00:07]} 49. Kf1 {[%clk 00:00:21]} {[%emt
00:00:10]} Kh6 {[%clk 00:00:16]} {[%emt 00:00:06]} 50. Rd5 {[%clk 00:00:19]}
{[%emt 00:00:07]} f6 {[%clk 00:00:17]} {[%emt 00:00:04]} 51. Kg2 {[%clk
00:00:21]} {[%emt 00:00:02]} h3+ {[%clk 00:00:11]} {[%emt 00:00:12]} 52. Kh2
{[%clk 00:00:23]} {[%emt 00:00:03]} Rf3 {[%clk 00:00:14]} {[%emt 00:00:02]} 53.
Kg1 {[%clk 00:00:14]} {[%emt 00:00:15]} Rf4 {[%clk 00:00:11]} {[%emt 00:00:07]}
54. Kh2 {[%clk 00:00:15]} {[%emt 00:00:04]} Rf3 {[%clk 00:00:11]} {[%emt
00:00:05]} 55. Rc5 {[%clk 00:00:14]} {[%emt 00:00:06]} Kg7 1-0

[Event "Vastgota Open 2023"]
[Site "Skara stadshotell, Jarnvagsgatan 5, Skara, Sweden"]
[Date "2023.02.18"]
[Round "2.6"]
[White "Galperin, Platon"]
[Black "Danielsson, Fredrik"]
[Result "1-0"]
[TimeControl "15 minutes + 5 seconds per move from move one (Round 1 - 2) / 30 minutes + 10 seconds per move from move one (Round 3 - 9)"]
[WhiteTitle "GM"]
[WhiteFideId "14165414"]
[BlackFideId "1729993"]
[WhiteElo "2429"]
[BlackElo "2071"]

1. Nf3 {[%clk 00:15:07]} {[%emt 00:00:02]} c6 {[%clk 00:15:08]} {[%emt
00:00:02]} 2. g3 {[%clk 00:15:08]} {[%emt 00:00:05]} d5 {[%clk 00:15:11]}
{[%emt 00:00:02]} 3. Bg2 {[%clk 00:15:10]} {[%emt 00:00:02]} Nf6 {[%clk
00:15:14]} {[%emt 00:00:02]} 4. O-O {[%clk 00:15:09]} {[%emt 00:00:05]} Bf5
{[%clk 00:15:12]} {[%emt 00:00:07]} 5. d3 {[%clk 00:15:10]} {[%emt 00:00:04]}
e6 {[%clk 00:15:00]} {[%emt 00:00:18]} 6. Nh4 {[%clk 00:15:11]} {[%emt
00:00:02]} Bg6 {[%clk 00:15:04]} {[%emt 00:00:02]} 7. Nd2 {[%clk 00:15:08]}
{[%emt 00:00:08]} Be7 {[%clk 00:14:58]} {[%emt 00:00:12]} 8. e4 {[%clk
00:15:09]} {[%emt 00:00:03]} dxe4 {[%clk 00:13:35]} {[%emt 00:01:28]} 9. dxe4
{[%clk 00:15:08]} {[%emt 00:00:06]} O-O {[%clk 00:13:29]} {[%emt 00:00:12]} 10.
h3 {[%clk 00:14:42]} {[%emt 00:00:31]} Nfd7 {[%clk 00:11:56]} {[%emt 00:01:38]}
11. Nxg6 {[%clk 00:14:38]} {[%emt 00:00:09]} hxg6 {[%clk 00:11:59]} {[%emt
00:00:02]} 12. h4 {[%clk 00:14:34]} {[%emt 00:00:08]} Qc7 {[%clk 00:11:24]}
{[%emt 00:00:41]} 13. h5 {[%clk 00:14:29]} {[%emt 00:00:10]} gxh5 {[%clk
00:11:23]} {[%emt 00:00:05]} 14. Qxh5 {[%clk 00:14:31]} {[%emt 00:00:03]} Nf6
{[%clk 00:11:21]} {[%emt 00:00:08]} 15. Qe2 {[%clk 00:14:31]} {[%emt 00:00:04]}
Nbd7 {[%clk 00:11:16]} {[%emt 00:00:11]} 16. a4 {[%clk 00:14:31]} {[%emt
00:00:04]} g6 {[%clk 00:07:27]} {[%emt 00:03:54]} 17. Nc4 {[%clk 00:14:21]}
{[%emt 00:00:15]} Kg7 {[%clk 00:07:09]} {[%emt 00:00:24]} 18. Bf4 {[%clk
00:14:11]} {[%emt 00:00:14]} e5 {[%clk 00:07:11]} {[%emt 00:00:04]} 19. Bg5
{[%clk 00:14:07]} {[%emt 00:00:08]} Rh8 {[%clk 00:06:24]} {[%emt 00:00:52]} 20.
Bf3 {[%clk 00:14:08]} {[%emt 00:00:05]} Nc5 {[%clk 00:04:46]} {[%emt 00:01:42]}
21. c3 {[%clk 00:13:42]} {[%emt 00:00:32]} Ne6 {[%clk 00:04:48]} {[%emt
00:00:03]} 22. Bd2 {[%clk 00:13:40]} {[%emt 00:00:06]} a5 {[%clk 00:04:05]}
{[%emt 00:00:49]} 23. Kg2 {[%clk 00:13:37]} {[%emt 00:00:07]} Bc5 {[%clk
00:03:56]} {[%emt 00:00:14]} 24. Rh1 {[%clk 00:12:49]} {[%emt 00:00:53]} b5
{[%clk 00:03:38]} {[%emt 00:00:24]} 25. Rxh8 {[%clk 00:12:43]} {[%emt
00:00:10]} Kxh8 {[%clk 00:03:37]} {[%emt 00:00:06]} 26. axb5 {[%clk 00:12:41]}
{[%emt 00:00:08]} cxb5 {[%clk 00:03:40]} {[%emt 00:00:02]} 27. Ne3 {[%clk
00:12:43]} {[%emt 00:00:02]} Bxe3 {[%clk 00:02:02]} {[%emt 00:01:44]} 28. Qxe3
{[%clk 00:12:45]} {[%emt 00:00:02]} Ng8 {[%clk 00:01:12]} {[%emt 00:00:56]} 29.
Bg4 {[%clk 00:12:47]} {[%emt 00:00:02]} Nc5 {[%clk 00:01:00]} {[%emt 00:00:17]}
30. Qf3 {[%clk 00:11:49]} {[%emt 00:01:03]} Kg7 {[%clk 00:00:59]} {[%emt
00:00:06]} 31. Be3 {[%clk 00:11:39]} {[%emt 00:00:15]} Nf6 {[%clk 00:00:51]}
{[%emt 00:00:14]} 32. Bh6+ {[%clk 00:11:41]} {[%emt 00:00:02]} Kxh6 {[%clk
00:00:35]} {[%emt 00:00:22]} 33. Qxf6 {[%clk 00:11:43]} {[%emt 00:00:02]} 1-0